[Event "44th Chess Olympiad Women 2022"]
[Site "Chennai"]
[Date "2022.08.07"]
[Round "9.39"]
[White "Heredia Serrano, Carla"]
[Black "Smith, Olivia"]
[Result "1/2-1/2"]
[WhiteElo "2090"]
[BlackElo "2038"]
[Annotator "RC"]
[PlyCount "166"]
[EventDate "2022.??.??"]
[TimeControl "60"]

1. e4 {[%emt 0:00:02]} e5 {[%emt 0:00:08]} 2. Nf3 {[%emt 0:00:04]} Nf6 {
[%emt 0:00:05]} 3. Nxe5 {[%emt 0:00:08]} d6 {[%emt 0:00:06]} 4. Nf3 {[%emt 0:
00:00]} Nxe4 {[%emt 0:00:05]} 5. Nc3 {[%emt 0:00:06]} Nxc3 {[%emt 0:00:06]} 6.
dxc3 {[%emt 0:00:05]} Be7 {[%emt 0:00:11]} 7. Bd3 {[%emt 0:00:30]} Nd7 {
[%emt 0:02:13]} 8. Be3 {[%emt 0:01:53]} O-O {[%emt 0:00:34]} 9. Qd2 {[%emt 0:
00:00]} Nf6 {[%emt 0:01:31]} 10. h3 {[%emt 0:00:42]} c5 {[%emt 0:06:08]} 11.
O-O {[%emt 0:07:50]} d5 {[%emt 0:02:31]} 12. Rad1 {[%emt 0:03:12]} b6 {[%emt 0:
00:00]} 13. Qe2 {[%emt 0:21:17]} Qc7 {[%emt 0:03:39]} 14. Ba6 {[%emt 0:09:30]}
Be6 {[%emt 0:00:51]} 15. Ng5 {[%emt 0:08:42]} Bd6 {[%emt 0:05:14]} 16. b3 {
[%emt 0:06:51]} Rae8 {[%emt 0:04:48]} 17. Bb5 {[%emt 0:04:39]} Re7 {[%emt 0:00:
00]} 18. Qd2 {[%emt 0:01:28]} Bc8 {[%emt 0:01:39]} 19. Nf3 {[%emt 0:08:36]} Bb7
{[%emt 0:02:26]} 20. Bd3 {[%emt 0:06:06]} Rfe8 {[%emt 0:03:53]} 21. Nh4 {
[%emt 0:03:36]} Ne4 {[%emt 0:08:49]} 22. Bxe4 {[%emt 0:00:13]} Rxe4 {[%emt 0:
00:00]} 23. Nf5 {[%emt 0:02:14]} Bf8 {[%emt 0:00:36]} 24. Rfe1 {[%emt 0:02:02]}
Qc6 {[%emt 0:03:12]} 25. f3 {[%emt 0:00:41]} R4e5 {[%emt 0:01:25]} 26. Ng3 {
[%emt 0:00:11]} Qg6 {[%emt 0:04:07]} 27. Bf4 {[%emt 0:01:50]} R5e6 {[%emt 0:00:
00]} 28. Rxe6 {[%emt 0:00:35]} Qxe6 {[%emt 0:00:52]} 29. Nf1 {[%emt 0:00:25]}
d4 {[%emt 0:01:10]} 30. Bg3 {[%emt 0:00:33]} Qg6 {[%emt 0:05:48]} 31. Kh1 {
[%emt 0:00:12]} Qf6 {[%emt 0:04:56]} 32. cxd4 {[%emt 0:01:21]} Bxf3 {[%emt 0:
00:00]} 33. Re1 {[%emt 0:00:21]} Rxe1 {[%emt 0:00:48]} 34. Qxe1 {[%emt 0:00:18]
} Bc6 {[%emt 0:01:24]} 35. dxc5 {[%emt 0:00:51]} Bxc5 {[%emt 0:00:45]} 36. Kh2
{[%emt 0:00:32]} Qd4 {[%emt 0:04:16]} 37. Nd2 {[%emt 0:00:06]} Bb4 {[%emt 0:00:
00]} 38. c3 {[%emt 0:00:07]} Bxc3 {[%emt 0:06:03]} 39. Nf3 {[%emt 0:00:26]}
Bxe1 {[%emt 0:00:29]} 40. Nxd4 {[%emt 0:00:17]} Bxg3+ {[%emt 0:00:05]} 41. Kxg3
{[%emt 0:30:22]} Bd7 {[%emt 0:30:07]} 42. Kf4 {[%emt 0:00:00]} f6 {[%emt 0:00:
00]} 43. Ke4 {[%emt 0:00:00]} Kf7 {[%emt 0:00:00]} 44. Kd5 {[%emt 0:00:00]} h5
{[%emt 0:00:00]} 45. Kd6 {[%emt 0:00:00]} Ke8 {[%emt 0:00:00]} 46. Kc7 {
[%emt 0:00:00]} b5 {[%emt 0:00:00]} 47. Kb7 {[%emt 0:00:00]} Ke7 {[%emt 0:00:
00]} 48. Kxa7 {[%emt 0:00:00]} Kd6 {[%emt 0:00:00]} 49. Kb6 {[%emt 0:00:00]} b4
{[%emt 0:00:00]} 50. Nc2 {[%emt 0:00:00]} Bc6 {[%emt 0:00:00]} 51. g3 {[%emt 0:
00:00]} h4 {[%emt 0:02:12]} 52. gxh4 {[%emt 0:00:25]} Be4 {[%emt 0:00:35]} 53.
Ne3 {[%emt 0:04:49]} Bb1 {[%emt 0:01:28]} 54. Kb5 {[%emt 0:00:22]} Bxa2 {
[%emt 0:01:11]} 55. Kxb4 {[%emt 0:02:09]} Bb1 {[%emt 0:01:20]} 56. Kc4 {
[%emt 0:00:51]} Ke5 {[%emt 0:00:43]} 57. b4 {[%emt 0:00:39]} Kf4 {[%emt 0:00:
00]} 58. Nd5+ {[%emt 0:00:27]} Kg3 {[%emt 0:00:28]} 59. b5 {[%emt 0:00:30]} Bf5
{[%emt 0:00:38]} 60. b6 {[%emt 0:00:18]} Bc8 {[%emt 0:00:34]} 61. Nxf6 {
[%emt 0:00:43]} Kxh4 {[%emt 0:01:13]} 62. Ne8 {[%emt 0:00:23]} Bb7 {[%emt 0:00:
00]} 63. Nxg7 {[%emt 0:00:20]} Kxh3 {[%emt 0:00:10]} 64. Kc5 {[%emt 0:00:24]}
Kg4 {[%emt 0:00:48]} 65. Ne8 {[%emt 0:00:17]} Kf4 {[%emt 0:00:33]} 66. Kd6 {
[%emt 0:00:40]} Ke3 {[%emt 0:01:23]} 67. Kc7 {[%emt 0:00:20]} Ba8 {[%emt 0:00:
00]} 68. Kb8 {[%emt 0:00:43]} Bg2 {[%emt 0:00:28]} 69. Kc7 {[%emt 0:00:45]} Ba8
{[%emt 0:00:26]} 70. Kb8 {[%emt 0:00:35]} Bg2 {[%emt 0:00:09]} 71. Nd6 {
[%emt 0:00:18]} Kd4 {[%emt 0:00:39]} 72. Kc7 {[%emt 0:00:06]} Kc5 {[%emt 0:00:
00]} 73. Nb7+ {[%emt 0:00:14]} Kb5 {[%emt 0:00:14]} 74. Nd8 {[%emt 0:00:09]}
Bf3 {[%emt 0:00:38]} 75. Ne6 {[%emt 0:00:17]} Bg2 {[%emt 0:00:28]} 76. Nd4+ {
[%emt 0:00:53]} Kc5 {[%emt 0:00:20]} 77. Nf5 {[%emt 0:01:01]} Kb5 {[%emt 0:00:
00]} 78. Ne7 {[%emt 0:00:09]} Kc5 {[%emt 0:00:19]} 79. Nc8 {[%emt 0:00:09]} Bf3
{[%emt 0:00:24]} 80. Kb8 {[%emt 0:00:42]} Kb5 {[%emt 0:00:54]} 81. Ka7 {
[%emt 0:00:06]} Bg2 {[%emt 0:01:07]} 82. Nd6+ {[%emt 0:01:13]} Kc5 {[%emt 0:00:
00]} 83. Nb7+ {[%emt 0:00:33]} Kb5 {[%emt 0:00:23]} 1/2-1/2

[Event "44th Chess Olympiad Women 2022"]
[Site "Chennai"]
[Date "2022.08.07"]
[Round "9.39"]
[White "Penafiel Mendoza, Josselyne"]
[Black "Ray, Hiya"]
[Result "1-0"]
[WhiteElo "1804"]
[BlackElo "1586"]
[Annotator "NA RC"]
[PlyCount "49"]
[EventDate "2022.??.??"]
[TimeControl "60"]

1. d4 {[%emt 0:00:06]} d5 {[%emt 0:00:13]} 2. Nf3 {[%emt 0:00:05]} e6 {[%emt 0:
00:00]} 3. c4 {[%emt 0:00:06]} c6 {[%emt 0:00:20]} 4. g3 {[%emt 0:02:29]} Nf6 {
[%emt 0:03:01]} 5. Bg2 {[%emt 0:00:05]} Bd6 {[%emt 0:03:42]} 6. O-O {[%emt 0:
00:00]} O-O {[%emt 0:01:18]} 7. b3 {[%emt 0:00:03]} Nbd7 {[%emt 0:06:10]} 8.
Bb2 {[%emt 0:00:27]} Ne4 {[%emt 0:03:24]} 9. Nbd2 {[%emt 0:09:46]} f5 {[%emt 0:
00:00]} 10. Qc2 {[%emt 0:03:44]} Qf6 {[%emt 0:04:07]} 11. a3 {[%emt 0:08:00]}
e5 {[%emt 0:07:01]} 12. dxe5 {[%emt 0:05:06]} Nxe5 {[%emt 0:00:40]} 13. cxd5 {
[%emt 0:02:12]} cxd5 {[%emt 0:00:26]} 14. Rad1 {[%emt 0:01:29]} Bd7 {[%emt 0:
00:00]} 15. Nxe4 {[%emt 0:02:49]} fxe4 {[%emt 0:01:24]} 16. Nxe5 {[%emt 0:00:
00]} Bxe5 {[%emt 0:02:13]} 17. Rxd5 {[%emt 0:03:51]} Bxb2 {[%emt 0:03:21]} 18.
Rxd7 {[%emt 0:00:15]} e3 {[%emt 0:05:39]} 19. Qc4+ {[%emt 0:10:45]} Kh8 {
[%emt 0:01:37]} 20. fxe3 {[%emt 0:08:48]} Qg5 {[%emt 0:04:52]} 21. Rf4 {
[%emt 0:12:17]} Qe5 {[%emt 0:10:24]} 22. Be4 {[%emt 0:09:05]} Rac8 {[%emt 0:00:
00]} 23. Rdf7 {[%emt 0:00:00]} Bxa3 {[%emt 0:04:51]} 24. b4 {[%emt 0:00:00]}
Rg8 {[%emt 0:01:49]} 25. Qxc8 {[%emt 0:00:00]} 1-0

[Event "44th Chess Olympiad Women 2022"]
[Site "Chennai"]
[Date "2022.08.07"]
[Round "9.40"]
[White "Kojima, Natsumi"]
[Black "Oviedo Acosta, Paula"]
[Result "0-1"]
[WhiteElo "1782"]
[BlackElo "1855"]
[Annotator "NA RC"]
[PlyCount "92"]
[EventDate "2022.??.??"]
[TimeControl "60"]

1. e4 {[%emt 0:00:03]} c5 {[%emt 0:00:15]} 2. Nc3 {[%emt 0:00:12]} a6 {[%emt 0:
00:00]} 3. f4 {[%emt 0:00:17]} b5 {[%emt 0:00:22]} 4. Nf3 {[%emt 0:01:28]} Bb7
{[%emt 0:01:11]} 5. d3 {[%emt 0:04:51]} e6 {[%emt 0:01:58]} 6. g3 {[%emt 0:00:
00]} d5 {[%emt 0:01:07]} 7. Qe2 {[%emt 0:01:28]} Nc6 {[%emt 0:01:37]} 8. Bg2 {
[%emt 0:09:44]} Nd4 {[%emt 0:09:15]} 9. Nxd4 {[%emt 0:08:52]} cxd4 {[%emt 0:00:
00]} 10. Nd1 {[%emt 0:08:00]} dxe4 {[%emt 0:02:21]} 11. dxe4 {[%emt 0:02:51]}
Rc8 {[%emt 0:00:37]} 12. O-O {[%emt 0:02:05]} Qb6 {[%emt 0:05:15]} 13. Kh1 {
[%emt 0:03:29]} Nf6 {[%emt 0:00:38]} 14. b3 {[%emt 0:04:58]} Qc7 {[%emt 0:00:
00]} 15. Rf2 {[%emt 0:04:24]} Bc5 {[%emt 0:00:32]} 16. Qd3 {[%emt 0:04:16]} O-O
{[%emt 0:02:52]} 17. Bb2 {[%emt 0:01:57]} Rfd8 {[%emt 0:02:06]} 18. Re2 {
[%emt 0:03:00]} Ng4 {[%emt 0:08:56]} 19. Qf3 {[%emt 0:07:47]} f5 {[%emt 0:00:
00]} 20. h3 {[%emt 0:01:49]} Ne3 {[%emt 0:03:56]} 21. Nxe3 {[%emt 0:02:00]}
Bxe4 {[%emt 0:00:07]} 22. Qh5 {[%emt 0:02:16]} dxe3 {[%emt 0:00:51]} 23. Bxe4 {
[%emt 0:01:31]} fxe4 {[%emt 0:00:20]} 24. Qg4 {[%emt 0:01:57]} Qf7 {[%emt 0:00:
00]} 25. Rae1 {[%emt 0:05:15]} h5 {[%emt 0:00:38]} 26. Qg5 {[%emt 0:03:53]} Rd5
{[%emt 0:02:31]} 27. Be5 {[%emt 0:00:09]} Be7 {[%emt 0:00:07]} 28. Qxg7+ {
[%emt 0:00:52]} Qxg7 {[%emt 0:00:06]} 29. Bxg7 {[%emt 0:00:06]} Kxg7 {[%emt 0:
00:00]} 30. Rxe3 {[%emt 0:00:33]} Rxc2 {[%emt 0:00:05]} 31. R3e2 {[%emt 0:00:
00]} Bb4 {[%emt 0:02:51]} 32. Rxc2 {[%emt 0:02:23]} Bxe1 {[%emt 0:00:05]} 33.
Kg2 {[%emt 0:02:03]} Rd2+ {[%emt 0:00:06]} 34. Rxd2 {[%emt 0:00:06]} Bxd2 {
[%emt 0:00:04]} 35. Kf2 {[%emt 0:00:13]} Kf6 {[%emt 0:00:29]} 36. Ke2 {[%emt 0:
00:00]} Bc1 {[%emt 0:01:01]} 37. Kd1 {[%emt 0:00:36]} Be3 {[%emt 0:00:06]} 38.
Ke2 {[%emt 0:00:13]} Bd4 {[%emt 0:00:06]} 39. Kd2 {[%emt 0:01:36]} b4 {[%emt 0:
00:00]} 40. Ke2 {[%emt 0:00:13]} Kf5 {[%emt 0:00:08]} 41. Kf1 {[%emt 0:31:05]}
e5 {[%emt 0:30:10]} 42. fxe5 {[%emt 0:01:00]} Bxe5 {[%emt 0:00:09]} 43. Kf2 {
[%emt 0:00:15]} Bd4+ {[%emt 0:00:24]} 44. Ke2 {[%emt 0:00:11]} Bc5 {[%emt 0:00:
00]} 45. Kf1 {[%emt 0:00:19]} e3 {[%emt 0:00:05]} 46. Ke2 {[%emt 0:00:07]} Ke5
{[%emt 0:01:37]} 0-1

[Event "44th Chess Olympiad Women 2022"]
[Site "Chennai"]
[Date "2022.08.07"]
[Round "9.40"]
[White "Mitsuyama, Rikka"]
[Black "Mayeregger Gonzalez, Renata"]
[Result "0-1"]
[WhiteElo "1157"]
[BlackElo "1479"]
[Annotator "NA"]
[PlyCount "70"]
[EventDate "2022.??.??"]
[TimeControl "60"]

1. d4 {[%emt 0:00:04]} c5 {[%emt 0:00:09]} 2. d5 {[%emt 0:06:47]} Nf6 {[%emt 0:
00:00]} 3. c4 {[%emt 0:03:59]} e6 {[%emt 0:01:06]} 4. Nc3 {[%emt 0:01:45]} exd5
{[%emt 0:01:08]} 5. Nxd5 {[%emt 0:07:40]} d6 {[%emt 0:01:55]} 6. e4 {[%emt 0:
00:00]} h6 {[%emt 0:06:35]} 7. Bd3 {[%emt 0:02:53]} Nc6 {[%emt 0:03:15]} 8. Nf3
{[%emt 0:06:41]} Bg4 {[%emt 0:03:54]} 9. h3 {[%emt 0:03:55]} Bh5 {[%emt 0:00:
00]} 10. Nf4 {[%emt 0:05:24]} Bxf3 {[%emt 0:05:49]} 11. Qxf3 {[%emt 0:00:57]}
Ne5 {[%emt 0:01:23]} 12. Qd1 {[%emt 0:02:59]} g5 {[%emt 0:09:50]} 13. Ne2 {
[%emt 0:05:57]} Nxd3+ {[%emt 0:06:30]} 14. Qxd3 {[%emt 0:00:31]} Qe7 {[%emt 0:
00:00]} 15. Ng3 {[%emt 0:07:38]} O-O-O {[%emt 0:04:45]} 16. O-O {[%emt 0:03:45]
} Nd7 {[%emt 0:15:40]} 17. Qa3 {[%emt 0:06:19]} a6 {[%emt 0:00:00]} 18. b4 {
[%emt 0:07:48]} Bg7 {[%emt 0:06:03]} 19. Nf5 {[%emt 0:03:09]} Qe5 {[%emt 0:00:
00]} 20. Rb1 {[%emt 0:01:32]} Bf6 {[%emt 0:02:19]} 21. Rd1 {[%emt 0:01:56]} Nb6
{[%emt 0:07:49]} 22. b5 {[%emt 0:08:56]} Nxc4 {[%emt 0:03:13]} 23. Qa4 {
[%emt 0:01:26]} Qxe4 {[%emt 0:02:15]} 24. bxa6 {[%emt 0:00:30]} Qxb1 {[%emt 0:
00:00]} 25. Qxc4 {[%emt 0:00:26]} Qxf5 {[%emt 0:01:25]} 26. a7 {[%emt 0:00:29]}
Kc7 {[%emt 0:00:28]} 27. Qb5 {[%emt 0:00:25]} Ra8 {[%emt 0:00:30]} 28. Qa5+ {
[%emt 0:00:30]} b6 {[%emt 0:00:30]} 29. Qd2 {[%emt 0:00:30]} Rhd8 {[%emt 0:00:
00]} 30. g4 {[%emt 0:00:16]} Qe5 {[%emt 0:00:22]} 31. Re1 {[%emt 0:00:33]} Qd4
{[%emt 0:00:17]} 32. Qc2 {[%emt 0:00:46]} Re8 {[%emt 0:00:40]} 33. Rd1 {
[%emt 0:00:36]} Qe4 {[%emt 0:00:48]} 34. Qd2 {[%emt 0:00:18]} Bd4 {[%emt 0:00:
00]} 35. Kf1 {[%emt 0:00:42]} Qh1# {[%emt 0:00:28]} 0-1

[Event "44th Chess Olympiad Women 2022"]
[Site "Chennai"]
[Date "2022.08.07"]
[Round "9.40"]
[White "Montiel Caceres, Helen"]
[Black "Misawa, Yuki"]
[Result "1-0"]
[WhiteElo "1763"]
[BlackElo "1587"]
[Annotator "NA"]
[PlyCount "103"]
[EventDate "2022.??.??"]
[TimeControl "60"]

1. d4 {[%emt 0:00:02]} d5 {[%emt 0:00:04]} 2. c4 {[%emt 0:00:07]} c6 {[%emt 0:
00:00]} 3. Nc3 {[%emt 0:00:05]} Nf6 {[%emt 0:00:05]} 4. e3 {[%emt 0:00:19]} Bf5
{[%emt 0:03:54]} 5. Qb3 {[%emt 0:00:19]} Qb6 {[%emt 0:01:42]} 6. Nf3 {[%emt 0:
00:00]} e6 {[%emt 0:00:46]} 7. Be2 {[%emt 0:02:06]} Be7 {[%emt 0:01:27]} 8. O-O
{[%emt 0:01:08]} O-O {[%emt 0:03:36]} 9. Qd1 {[%emt 0:00:20]} Ne4 {[%emt 0:00:
00]} 10. Nxe4 {[%emt 0:06:51]} Bxe4 {[%emt 0:02:07]} 11. b3 {[%emt 0:00:04]}
Nd7 {[%emt 0:03:06]} 12. Bb2 {[%emt 0:00:10]} h6 {[%emt 0:01:58]} 13. Qc1 {
[%emt 0:04:59]} Nf6 {[%emt 0:09:11]} 14. Ba3 {[%emt 0:00:41]} Qd8 {[%emt 0:00:
00]} 15. Bxe7 {[%emt 0:00:28]} Qxe7 {[%emt 0:00:17]} 16. c5 {[%emt 0:00:15]}
Bh7 {[%emt 0:01:40]} 17. b4 {[%emt 0:01:46]} a6 {[%emt 0:01:33]} 18. a4 {
[%emt 0:00:12]} Rfc8 {[%emt 0:05:38]} 19. Qb2 {[%emt 0:00:39]} Qc7 {[%emt 0:00:
00]} 20. Nd2 {[%emt 0:04:25]} Ne4 {[%emt 0:07:12]} 21. Nb3 {[%emt 0:00:17]} Qe7
{[%emt 0:01:14]} 22. f3 {[%emt 0:00:31]} Nf6 {[%emt 0:02:00]} 23. Qc3 {[%emt 0:
00:00]} Ne8 {[%emt 0:01:35]} 24. b5 {[%emt 0:05:03]} axb5 {[%emt 0:01:44]} 25.
axb5 {[%emt 0:00:10]} cxb5 {[%emt 0:04:16]} 26. Bxb5 {[%emt 0:00:48]} Nc7 {
[%emt 0:04:02]} 27. Bd3 {[%emt 0:24:30]} Bxd3 {[%emt 0:03:35]} 28. Qxd3 {
[%emt 0:00:04]} Qd7 {[%emt 0:02:19]} 29. Ra5 {[%emt 0:04:25]} Qc6 {[%emt 0:00:
00]} 30. Rfa1 {[%emt 0:00:47]} b6 {[%emt 0:03:33]} 31. Rxa8 {[%emt 0:02:21]}
Rxa8 {[%emt 0:00:22]} 32. Rxa8+ {[%emt 0:00:12]} Nxa8 {[%emt 0:05:42]} 33. Qa6
{[%emt 0:00:06]} g5 {[%emt 0:00:44]} 34. Na5 {[%emt 0:00:24]} Qa4 {[%emt 0:00:
00]} 35. Qxa8+ {[%emt 0:00:57]} Kg7 {[%emt 0:00:34]} 36. h3 {[%emt 0:02:26]}
bxa5 {[%emt 0:02:42]} 37. Qb8 {[%emt 0:00:47]} Qa1+ {[%emt 0:03:07]} 38. Kh2 {
[%emt 0:00:08]} Qc3 {[%emt 0:00:20]} 39. Qe5+ {[%emt 0:00:44]} Kf8 {[%emt 0:00:
00]} 40. Qd6+ {[%emt 0:01:03]} Ke8 {[%emt 0:01:30]} 41. c6 {[%emt 0:31:51]}
Qxe3 {[%emt 0:31:23]} 42. Qd7+ {[%emt 0:00:21]} Kf8 {[%emt 0:00:10]} 43. Qd8+ {
[%emt 0:00:08]} Kg7 {[%emt 0:00:19]} 44. Qd6 {[%emt 0:00:09]} Qxd4 {[%emt 0:00:
00]} 45. c7 {[%emt 0:00:22]} e5 {[%emt 0:00:07]} 46. Qc6 {[%emt 0:00:32]} Qf4+
{[%emt 0:00:16]} 47. Kh1 {[%emt 0:00:05]} d4 {[%emt 0:04:27]} 48. c8=Q {
[%emt 0:00:10]} d3 {[%emt 0:00:49]} 49. Qd6 {[%emt 0:00:40]} d2 {[%emt 0:00:16]
} 50. Qcd8 {[%emt 0:00:05]} h5 {[%emt 0:02:12]} 51. Q8f8+ {[%emt 0:00:04]} Kh7
{[%emt 0:00:11]} 52. Qdh6# {[%emt 0:00:04]} 1-0

[Event "44th Chess Olympiad Women 2022"]
[Site "Chennai"]
[Date "2022.08.07"]
[Round "9.40"]
[White "Vargas, Gabriela"]
[Black "Sakai, Azumi"]
[Result "1-0"]
[WhiteElo "2140"]
[BlackElo "1759"]
[Annotator "NA RC"]
[PlyCount "45"]
[EventDate "2022.??.??"]
[TimeControl "60"]

1. d4 {[%emt 0:00:03]} d5 {[%emt 0:00:05]} 2. Nf3 {[%emt 0:00:15]} Nf6 {
[%emt 0:00:05]} 3. c3 {[%emt 0:01:48]} e6 {[%emt 0:02:24]} 4. Bg5 {[%emt 0:00:
00]} c5 {[%emt 0:01:31]} 5. Nbd2 {[%emt 0:00:35]} Be7 {[%emt 0:01:52]} 6. e3 {
[%emt 0:00:17]} Nc6 {[%emt 0:01:01]} 7. Bd3 {[%emt 0:01:04]} h6 {[%emt 0:01:03]
} 8. Bh4 {[%emt 0:01:17]} Qb6 {[%emt 0:00:52]} 9. Rb1 {[%emt 0:02:58]} Bd7 {
[%emt 0:03:17]} 10. Qe2 {[%emt 0:06:49]} O-O {[%emt 0:05:36]} 11. Ne5 {[%emt 0:
00:00]} Rad8 {[%emt 0:02:23]} 12. O-O {[%emt 0:04:48]} Qc7 {[%emt 0:03:36]} 13.
f4 {[%emt 0:01:46]} c4 {[%emt 0:08:10]} 14. Bc2 {[%emt 0:00:20]} b5 {[%emt 0:
00:00]} 15. Rf3 {[%emt 0:05:14]} a5 {[%emt 0:02:51]} 16. Rg3 {[%emt 0:05:17]}
Bc8 {[%emt 0:09:09]} 17. Bxf6 {[%emt 0:02:07]} Bxf6 {[%emt 0:00:39]} 18. Qh5 {
[%emt 0:00:50]} Kh8 {[%emt 0:01:36]} 19. Ng4 {[%emt 0:00:40]} Nxd4 {[%emt 0:00:
00]} 20. cxd4 {[%emt 0:03:19]} Bxd4 {[%emt 0:03:05]} 21. Nxh6 {[%emt 0:04:30]}
Bxe3+ {[%emt 0:00:56]} 22. Rxe3 {[%emt 0:00:20]} g6 {[%emt 0:01:51]} 23. Nxf7+
{[%emt 0:00:07]} 1-0

[Event "44th Chess Olympiad Women 2022"]
[Site "Chennai"]
[Date "2022.08.07"]
[Round "9.41"]
[White "Caku, Kler"]
[Black "Castillo Beitia, Ashley Alexandra"]
[Result "1/2-1/2"]
[WhiteElo "1626"]
[BlackElo "1587"]
[Annotator "NA"]
[PlyCount "68"]
[EventDate "2022.??.??"]
[TimeControl "60"]

1. e4 {[%emt 0:00:02]} c5 {[%emt 0:00:05]} 2. Nf3 {[%emt 0:00:09]} d6 {[%emt 0:
00:00]} 3. c3 {[%emt 0:00:05]} d5 {[%emt 0:00:53]} 4. exd5 {[%emt 0:00:32]}
Qxd5 {[%emt 0:00:08]} 5. d4 {[%emt 0:01:43]} Nc6 {[%emt 0:02:28]} 6. Be3 {
[%emt 0:03:04]} cxd4 {[%emt 0:06:59]} 7. Nxd4 {[%emt 0:01:10]} a6 {[%emt 0:00:
00]} 8. c4 {[%emt 0:03:10]} Qa5+ {[%emt 0:04:58]} 9. Nc3 {[%emt 0:02:23]} Nxd4
{[%emt 0:04:19]} 10. Bxd4 {[%emt 0:03:25]} Nf6 {[%emt 0:06:13]} 11. a3 {
[%emt 0:06:19]} e6 {[%emt 0:06:53]} 12. Be2 {[%emt 0:03:26]} Be7 {[%emt 0:00:
00]} 13. O-O {[%emt 0:07:02]} O-O {[%emt 0:01:25]} 14. Qb3 {[%emt 0:02:37]} Nd7
{[%emt 0:12:30]} 15. Rad1 {[%emt 0:06:08]} Bc5 {[%emt 0:00:00]} 16. Bxc5 {
[%emt 0:01:36]} Qxc5 {[%emt 0:03:30]} 17. Ne4 {[%emt 0:04:39]} Qe5 {[%emt 0:00:
00]} 18. Bf3 {[%emt 0:04:05]} Nc5 {[%emt 0:03:35]} 19. Nxc5 {[%emt 0:06:28]}
Qxc5 {[%emt 0:00:08]} 20. Rd2 {[%emt 0:02:54]} e5 {[%emt 0:03:37]} 21. Bd5 {
[%emt 0:04:30]} Kh8 {[%emt 0:05:19]} 22. Qc3 {[%emt 0:03:24]} f6 {[%emt 0:00:
00]} 23. b4 {[%emt 0:01:16]} Qc7 {[%emt 0:00:07]} 24. Qg3 {[%emt 0:03:37]} Bd7
{[%emt 0:03:06]} 25. f4 {[%emt 0:05:25]} Bc6 {[%emt 0:03:53]} 26. fxe5 {
[%emt 0:03:36]} Bxd5 {[%emt 0:03:27]} 27. cxd5 {[%emt 0:01:16]} fxe5 {[%emt 0:
00:00]} 28. Re1 {[%emt 0:01:29]} Rac8 {[%emt 0:04:15]} 29. h3 {[%emt 0:01:36]}
Qf7 {[%emt 0:01:28]} 30. Qxe5 {[%emt 0:02:45]} Rce8 {[%emt 0:01:47]} 31. Qg3 {
[%emt 0:01:03]} Kg8 {[%emt 0:01:09]} 32. d6 {[%emt 0:03:45]} Rxe1+ {[%emt 0:00:
00]} 33. Qxe1 {[%emt 0:00:10]} Rd8 {[%emt 0:04:41]} 34. Qe7 {[%emt 0:04:14]}
Rd7 {[%emt 0:00:00]} 1/2-1/2

[Event "44th Chess Olympiad Women 2022"]
[Site "Chennai"]
[Date "2022.08.07"]
[Round "9.41"]
[White "Munoz Henriquez, Alba Esther"]
[Black "Gjergji, Rozana"]
[Result "0-1"]
[WhiteElo "1588"]
[BlackElo "1920"]
[Annotator "NA"]
[PlyCount "118"]
[EventDate "2022.??.??"]
[TimeControl "60"]

1. e4 {[%emt 0:00:03]} e5 {[%emt 0:00:06]} 2. Nf3 {[%emt 0:00:06]} Nc6 {
[%emt 0:00:07]} 3. Bb5 {[%emt 0:00:06]} a6 {[%emt 0:00:09]} 4. Ba4 {[%emt 0:00:
00]} d6 {[%emt 0:01:04]} 5. d4 {[%emt 0:00:37]} b5 {[%emt 0:00:44]} 6. Bb3 {
[%emt 0:00:07]} Nxd4 {[%emt 0:00:30]} 7. Nxd4 {[%emt 0:00:13]} exd4 {[%emt 0:
00:00]} 8. Qxd4 {[%emt 0:00:14]} c5 {[%emt 0:00:13]} 9. Qd5 {[%emt 0:00:27]}
Be6 {[%emt 0:00:36]} 10. Qc6+ {[%emt 0:01:05]} Bd7 {[%emt 0:00:15]} 11. Qd5 {
[%emt 0:00:39]} c4 {[%emt 0:00:11]} 12. Bxc4 {[%emt 0:00:30]} bxc4 {[%emt 0:00:
00]} 13. Qxc4 {[%emt 0:00:14]} Nf6 {[%emt 0:01:49]} 14. Nc3 {[%emt 0:01:18]}
Be7 {[%emt 0:05:54]} 15. O-O {[%emt 0:00:12]} O-O {[%emt 0:00:33]} 16. Re1 {
[%emt 0:02:40]} Qb6 {[%emt 0:01:58]} 17. a4 {[%emt 0:07:28]} Rac8 {[%emt 0:00:
00]} 18. Qd3 {[%emt 0:01:53]} Rfe8 {[%emt 0:04:34]} 19. h3 {[%emt 0:05:42]} Bc6
{[%emt 0:02:53]} 20. Be3 {[%emt 0:06:37]} Qb7 {[%emt 0:00:47]} 21. f3 {[%emt 0:
00:00]} Nd7 {[%emt 0:07:30]} 22. Bd4 {[%emt 0:09:01]} Bf6 {[%emt 0:06:44]} 23.
b3 {[%emt 0:15:24]} Qb4 {[%emt 0:10:44]} 24. Ne2 {[%emt 0:00:00]} d5 {[%emt 0:
00:00]} 25. Bxf6 {[%emt 0:01:42]} Nxf6 {[%emt 0:09:51]} 26. exd5 {[%emt 0:00:
00]} Qb6+ {[%emt 0:00:00]} 27. Qd4 {[%emt 0:06:12]} Nxd5 {[%emt 0:00:00]} 28.
Qxb6 {[%emt 0:00:54]} Nxb6 {[%emt 0:00:00]} 29. c4 {[%emt 0:01:51]} Kf8 {
[%emt 0:00:00]} 30. Kf2 {[%emt 0:01:32]} Nd7 {[%emt 0:00:00]} 31. Nd4 {[%emt 0:
00:00]} Nc5 {[%emt 0:00:00]} 32. Re3 {[%emt 0:01:57]} Bd7 {[%emt 0:01:12]} 33.
Rae1 {[%emt 0:01:08]} Rcd8 {[%emt 0:01:18]} 34. a5 {[%emt 0:03:06]} Rxe3 {
[%emt 0:04:44]} 35. Kxe3 {[%emt 0:00:31]} Re8+ {[%emt 0:01:35]} 36. Kd2 {
[%emt 0:00:27]} Rxe1 {[%emt 0:01:16]} 37. Kxe1 {[%emt 0:00:05]} Nd3+ {[%emt 0:
00:00]} 38. Ke2 {[%emt 0:00:15]} Nb4 {[%emt 0:00:41]} 39. Kd2 {[%emt 0:00:28]}
Nc6 {[%emt 0:02:46]} 40. Kc3 {[%emt 0:02:14]} Nxa5 {[%emt 0:02:55]} 41. Kb4 {
[%emt 0:30:08]} Nb7 {[%emt 0:32:09]} 42. c5 {[%emt 0:00:49]} a5+ {[%emt 0:00:
00]} 43. Kc4 {[%emt 0:00:28]} a4 {[%emt 0:05:11]} 44. c6 {[%emt 0:00:00]} Na5+
{[%emt 0:00:00]} 45. Kb4 {[%emt 0:00:00]} Nxc6+ {[%emt 0:00:00]} 46. Nxc6 {
[%emt 0:00:00]} axb3 {[%emt 0:00:00]} 47. Kxb3 {[%emt 0:00:00]} Bxc6 {[%emt 0:
00:00]} 48. Kb4 {[%emt 0:00:00]} f5 {[%emt 0:00:00]} 49. h4 {[%emt 0:00:00]}
Kf7 {[%emt 0:00:00]} 50. Kc5 {[%emt 0:00:00]} Ba8 {[%emt 0:00:00]} 51. Kd4 {
[%emt 0:00:00]} Kf6 {[%emt 0:00:00]} 52. Ke3 {[%emt 0:00:00]} h5 {[%emt 0:00:
00]} 53. Kf4 {[%emt 0:03:00]} Bd5 {[%emt 0:00:00]} 54. g3 {[%emt 0:00:35]} g6 {
[%emt 0:00:00]} 55. Ke3 {[%emt 0:00:17]} g5 {[%emt 0:00:00]} 56. f4 {[%emt 0:
00:00]} gxh4 {[%emt 0:00:00]} 57. gxh4 {[%emt 0:00:07]} Ke6 {[%emt 0:00:00]}
58. Kd3 {[%emt 0:00:38]} Kd6 {[%emt 0:00:00]} 59. Kd4 {[%emt 0:01:09]} Be6 {
[%emt 0:23:53]} 0-1